[Event "Titled Tuesday Blitz January 10 Early 2023"]
[White "Vakhlamov, Igor L."]
[Black "Erzhanov, Arman"]
[WhiteFideId "24126748"]
[BlackFideId "4138821"]
[WhiteElo "2413"]
[BlackElo "2228"]
[Result "1-0"]
[Round "01"]
[TimeControl "180+2"]
[Date "2023.01.10"]
[WhiteClock "0:00:37"]
[BlackClock "0:00:01"]

1. e4 {[%clk 0:02:59]}  d6 {[%clk 0:02:59]} 2. d4 {[%clk 0:02:56]}  Nf6 {[%clk 0:02:59]} 3. Nc3 {[%clk 0:02:56]}  e5 {[%clk 0:02:59]} 4. dxe5 {[%clk 0:02:57]}  dxe5 {[%clk 0:02:59]} 5. Qxd8+ {[%clk 0:02:58]}  Kxd8 {[%clk 0:03:00]} 6. Bg5 {[%clk 0:02:58]}  c6 {[%clk 0:03:00]} 7. Nf3 {[%clk 0:02:58]}  Bd6 {[%clk 0:03:00]} 8. O-O-O {[%clk 0:02:58]}  Ke7 {[%clk 0:03:00]} 9. Bc4 {[%clk 0:02:56]}  Bc7 {[%clk 0:02:59]} 10. a4 {[%clk 0:02:52]}  Nd7 {[%clk 0:02:46]} 11. Bh4 {[%clk 0:02:50]}  a5 {[%clk 0:02:37]} 12. Rd2 {[%clk 0:02:38]}  Nc5 {[%clk 0:02:17]} 13. Re1 {[%clk 0:02:19]}  Bg4 {[%clk 0:02:14]} 14. Ng5 {[%clk 0:02:10]}  Ne6 {[%clk 0:01:53]} 15. f3 {[%clk 0:01:50]}  Nxg5 {[%clk 0:01:42]} 16. Bxg5 {[%clk 0:01:42]}  Be6 {[%clk 0:01:39]} 17. Bxe6 {[%clk 0:01:40]}  Kxe6 {[%clk 0:01:40]} 18. Be3 {[%clk 0:01:32]}  Rhd8 {[%clk 0:01:38]} 19. Red1 {[%clk 0:01:32]}  Rxd2 {[%clk 0:01:38]} 20. Rxd2 {[%clk 0:01:33]}  Nd7 {[%clk 0:01:31]} 21. Kd1 {[%clk 0:01:29]}  f6 {[%clk 0:01:30]} 22. Ke2 {[%clk 0:01:29]}  Bd6 {[%clk 0:01:31]} 23. Rd1 {[%clk 0:01:25]}  Bb4 {[%clk 0:01:28]} 24. Nb1 {[%clk 0:01:24]}  Be7 {[%clk 0:01:24]} 25. Nd2 {[%clk 0:01:22]}  b5 {[%clk 0:01:12]} 26. Ra1 {[%clk 0:01:12]}  Bc5 {[%clk 0:01:10]} 27. Nb3 {[%clk 0:01:10]}  Bxe3 {[%clk 0:01:08]} 28. Kxe3 {[%clk 0:01:11]}  b4 {[%clk 0:01:04]} 29. Rd1 {[%clk 0:01:09]}  g6 {[%clk 0:00:58]} 30. g3 {[%clk 0:01:07]}  Ra7 {[%clk 0:00:47]} 31. f4 {[%clk 0:01:04]}  Ke7 {[%clk 0:00:39]} 32. h4 {[%clk 0:01:01]}  h5 {[%clk 0:00:38]} 33. Kf3 {[%clk 0:00:57]}  Ke6 {[%clk 0:00:30]} 34. Ke3 {[%clk 0:00:57]}  Ke7 {[%clk 0:00:31]} 35. Rd2 {[%clk 0:00:57]}  Ke6 {[%clk 0:00:31]} 36. Rd3 {[%clk 0:00:50]}  Ke7 {[%clk 0:00:31]} 37. Kf3 {[%clk 0:00:44]}  Ke6 {[%clk 0:00:30]} 38. Rd1 {[%clk 0:00:45]}  Ke7 {[%clk 0:00:30]} 39. Ke2 {[%clk 0:00:42]}  Ke6 {[%clk 0:00:31]} 40. Kd3 {[%clk 0:00:40]}  Ke7 {[%clk 0:00:26]} 41. c3 {[%clk 0:00:41]}  Ra8 {[%clk 0:00:20]} 42. cxb4 {[%clk 0:00:40]}  axb4 {[%clk 0:00:20]} 43. a5 {[%clk 0:00:40]}  Rb8 {[%clk 0:00:07]} 44. Kc4 {[%clk 0:00:40]}  exf4 {[%clk 0:00:05]} 45. gxf4 {[%clk 0:00:40]}  g5 {[%clk 0:00:03]} 46. hxg5 {[%clk 0:00:39]}  fxg5 {[%clk 0:00:04]} 47. fxg5 {[%clk 0:00:40]}  Ne5+ {[%clk 0:00:04]} 48. Kc5 {[%clk 0:00:39]}  h4 {[%clk 0:00:05]} 49. a6 {[%clk 0:00:37]}  h3 {[%clk 0:00:04]} 50. a7 {[%clk 0:00:37]}  Ra8 {[%clk 0:00:03]} 51. Kb6 {[%clk 0:00:37]}  h2 {[%clk 0:00:01]} 52. Kb7 {[%clk 0:00:37]} 1-0


[Site "https://www.chess.com"]

[Event "Titled Tuesday Blitz January 10 Early 2023"]
[White "Chernomordik, Pavel"]
[Black "Kobalia, Mikhail"]
[WhiteFideId "2804530"]
[BlackFideId "4119150"]
[WhiteElo "2150"]
[BlackElo "2578"]
[Result "0-1"]
[Round "01"]
[TimeControl "180+2"]
[Date "2023.01.10"]
[WhiteClock "0:00:06"]
[BlackClock "0:00:35"]

1. e4 {[%clk 0:02:57]}  c5 {[%clk 0:01:51]} 2. Nc3 {[%clk 0:02:49]}  e6 {[%clk 0:01:51]} 3. f4 {[%clk 0:02:48]}  Nc6 {[%clk 0:01:51]} 4. Nf3 {[%clk 0:02:47]}  d6 {[%clk 0:01:51]} 5. g3 {[%clk 0:02:46]}  g6 {[%clk 0:01:51]} 6. Bg2 {[%clk 0:02:45]}  Bg7 {[%clk 0:01:51]} 7. d3 {[%clk 0:02:45]}  Nge7 {[%clk 0:01:51]} 8. O-O {[%clk 0:02:45]}  O-O {[%clk 0:01:51]} 9. Be3 {[%clk 0:02:44]}  Nd4 {[%clk 0:01:51]} 10. Ne1 {[%clk 0:02:36]}  Rb8 {[%clk 0:01:50]} 11. Qd2 {[%clk 0:02:32]}  b5 {[%clk 0:01:49]} 12. Nd1 {[%clk 0:02:30]}  b4 {[%clk 0:01:48]} 13. c3 {[%clk 0:02:26]}  bxc3 {[%clk 0:01:48]} 14. bxc3 {[%clk 0:02:26]}  Qa5 {[%clk 0:01:40]} 15. Rc1 {[%clk 0:02:18]}  Ndc6 {[%clk 0:01:29]} 16. g4 {[%clk 0:02:06]}  d5 {[%clk 0:01:20]} 17. Qf2 {[%clk 0:01:55]}  d4 {[%clk 0:01:17]} 18. cxd4 {[%clk 0:01:54]}  cxd4 {[%clk 0:01:15]} 19. Bd2 {[%clk 0:01:53]}  Qxa2 {[%clk 0:01:14]} 20. e5 {[%clk 0:01:43]}  Bd7 {[%clk 0:01:12]} 21. Nf3 {[%clk 0:01:31]}  Qa3 {[%clk 0:01:06]} 22. Nxd4 {[%clk 0:01:10]}  Nxd4 {[%clk 0:01:03]} 23. Qxd4 {[%clk 0:01:09]}  Rfd8 {[%clk 0:00:59]} 24. Nf2 {[%clk 0:00:54]}  Bc6 {[%clk 0:00:55]} 25. Qc3 {[%clk 0:00:43]}  Qxc3 {[%clk 0:00:54]} 26. Bxc3 {[%clk 0:00:38]}  Bxg2 {[%clk 0:00:54]} 27. Kxg2 {[%clk 0:00:38]}  Nd5 {[%clk 0:00:54]} 28. Bd2 {[%clk 0:00:33]}  Rb2 {[%clk 0:00:53]} 29. Ne4 {[%clk 0:00:28]}  f5 {[%clk 0:00:47]} 30. exf6 {[%clk 0:00:27]}  Nxf6 {[%clk 0:00:47]} 31. Nxf6+ {[%clk 0:00:17]}  Bxf6 {[%clk 0:00:48]} 32. Rf2 {[%clk 0:00:17]}  Bh4 {[%clk 0:00:43]} 33. Re2 {[%clk 0:00:16]}  Rxd3 {[%clk 0:00:41]} 34. Rc8+ {[%clk 0:00:14]}  Kf7 {[%clk 0:00:38]} 35. Rc7+ {[%clk 0:00:12]}  Kf8 {[%clk 0:00:37]} 36. Bb4+ {[%clk 0:00:06]}  Rxb4 {[%clk 0:00:36]} 37. Rxe6 {[%clk 0:00:06]}  Rb2+ {[%clk 0:00:35]} 0-1


[Site "https://www.chess.com"]

[Event "Titled Tuesday Blitz January 10 Early 2023"]
[White "Avazkhonov, Alikhon"]
[Black "Kosakowski, Jakub"]
[WhiteFideId "14208504"]
[BlackFideId "1185080"]
[WhiteElo "1538"]
[BlackElo "2485"]
[Result "0-1"]
[Round "01"]
[TimeControl "180+2"]
[Date "2023.01.10"]
[WhiteClock "0:00:03"]
[BlackClock "0:01:35"]

1. d4 {[%clk 0:02:59]}  Nf6 {[%clk 0:02:58]} 2. c4 {[%clk 0:02:58]}  g6 {[%clk 0:02:58]} 3. Nc3 {[%clk 0:02:56]}  d5 {[%clk 0:02:58]} 4. cxd5 {[%clk 0:02:56]}  Nxd5 {[%clk 0:02:58]} 5. e4 {[%clk 0:02:57]}  Nxc3 {[%clk 0:02:58]} 6. bxc3 {[%clk 0:02:58]}  Bg7 {[%clk 0:02:58]} 7. Bc4 {[%clk 0:02:55]}  c5 {[%clk 0:02:58]} 8. Ne2 {[%clk 0:02:55]}  Nc6 {[%clk 0:02:58]} 9. Be3 {[%clk 0:02:54]}  O-O {[%clk 0:02:58]} 10. O-O {[%clk 0:02:54]}  Qc7 {[%clk 0:02:58]} 11. dxc5 {[%clk 0:02:20]}  Ne5 {[%clk 0:02:57]} 12. Bd5 {[%clk 0:02:06]}  Ng4 {[%clk 0:02:56]} 13. Bf4 {[%clk 0:02:06]}  Qxc5 {[%clk 0:02:56]} 14. h3 {[%clk 0:02:06]}  Ne5 {[%clk 0:02:56]} 15. Rb1 {[%clk 0:02:02]}  Rd8 {[%clk 0:02:48]} 16. Bxe5 {[%clk 0:01:53]}  Bxe5 {[%clk 0:02:48]} 17. Bxf7+ {[%clk 0:01:42]}  Kxf7 {[%clk 0:02:45]} 18. Qxd8 {[%clk 0:01:42]}  b6 {[%clk 0:02:37]} 19. Qd5+ {[%clk 0:01:40]}  Qxd5 {[%clk 0:02:36]} 20. exd5 {[%clk 0:01:40]}  Ba6 {[%clk 0:02:37]} 21. Rfe1 {[%clk 0:01:41]}  Rd8 {[%clk 0:02:37]} 22. Rbd1 {[%clk 0:00:40]}  Bc4 {[%clk 0:02:35]} 23. Nd4 {[%clk 0:00:40]}  Rxd5 {[%clk 0:02:33]} 24. Nc6 {[%clk 0:00:39]}  Bf6 {[%clk 0:02:26]} 25. Rxd5 {[%clk 0:00:23]}  Bxd5 {[%clk 0:02:26]} 26. Nxa7 {[%clk 0:00:21]}  Bxa2 {[%clk 0:02:26]} 27. Ra1 {[%clk 0:00:17]}  Bc4 {[%clk 0:02:24]} 28. Rb1 {[%clk 0:00:17]}  Bd3 {[%clk 0:02:04]} 29. Rxb6 {[%clk 0:00:17]}  Bxc3 {[%clk 0:02:04]} 30. Rb3 {[%clk 0:00:17]}  Bd4 {[%clk 0:02:04]} 31. Nc6 {[%clk 0:00:15]}  Bc4 {[%clk 0:02:00]} 32. Rf3+ {[%clk 0:00:14]}  Bf6 {[%clk 0:01:58]} 33. Nd4 {[%clk 0:00:15]}  Kg7 {[%clk 0:01:56]} 34. Nc6 {[%clk 0:00:14]}  Bd5 {[%clk 0:01:55]} 35. Rxf6 {[%clk 0:00:08]}  Kxf6 {[%clk 0:01:53]} 36. Nd4 {[%clk 0:00:08]}  e5 {[%clk 0:01:53]} 37. Ne2 {[%clk 0:00:08]}  g5 {[%clk 0:01:53]} 38. f3 {[%clk 0:00:09]}  h5 {[%clk 0:01:46]} 39. Kf2 {[%clk 0:00:09]}  Bc6 {[%clk 0:01:47]} 40. Nc3 {[%clk 0:00:08]}  Kf5 {[%clk 0:01:46]} 41. g4+ {[%clk 0:00:07]}  Kg6 {[%clk 0:01:46]} 42. Ke3 {[%clk 0:00:06]}  h4 {[%clk 0:01:45]} 43. Ne4 {[%clk 0:00:05]}  Bb5 {[%clk 0:01:45]} 44. Nc5 {[%clk 0:00:05]}  Bf1 {[%clk 0:01:45]} 45. Nd3 {[%clk 0:00:05]}  Kf6 {[%clk 0:01:41]} 46. Nf2 {[%clk 0:00:05]}  Bg2 {[%clk 0:01:41]} 47. Ke2 {[%clk 0:00:04]}  Ke7 {[%clk 0:01:39]} 48. Ke3 {[%clk 0:00:03]}  Kf7 {[%clk 0:01:37]} 49. Ke4 {[%clk 0:00:03]}  Ke6 {[%clk 0:01:38]} 50. Ke3 {[%clk 0:00:03]}  Kd5 {[%clk 0:01:38]} 51. Kd3 {[%clk 0:00:03]}  Bxf3 {[%clk 0:01:38]} 52. Ke3 {[%clk 0:00:04]}  Bg2 {[%clk 0:01:39]} 53. Ke2 {[%clk 0:00:04]}  Kd4 {[%clk 0:01:39]} 54. Kd2 {[%clk 0:00:04]}  e4 {[%clk 0:01:37]} 55. Ke2 {[%clk 0:00:04]}  e3 {[%clk 0:01:38]} 56. Nd1 {[%clk 0:00:04]}  Bxh3 {[%clk 0:01:38]} 57. Nxe3 {[%clk 0:00:04]}  Ke4 {[%clk 0:01:38]} 58. Kf2 {[%clk 0:00:05]}  Kf4 {[%clk 0:01:39]} 59. Nd5+ {[%clk 0:00:03]}  Kxg4 {[%clk 0:01:39]} 60. Nf6+ {[%clk 0:00:04]}  Kf5 {[%clk 0:01:39]} 61. Nh5 {[%clk 0:00:05]}  Bg4 {[%clk 0:01:39]} 62. Ng7+ {[%clk 0:00:05]}  Kf4 {[%clk 0:01:39]} 63. Ne8 {[%clk 0:00:04]}  Bf5 {[%clk 0:01:36]} 64. Nd6 {[%clk 0:00:03]}  g4 {[%clk 0:01:36]} 65. Kg2 {[%clk 0:00:02]}  Be4+ {[%clk 0:01:36]} 66. Kf2 {[%clk 0:00:02]}  h3 {[%clk 0:01:35]} 67. Kg1 {[%clk 0:00:01]}  g3 {[%clk 0:01:35]} 68. Nc4 {[%clk 0:00:02]}  h2+ {[%clk 0:01:36]} 69. Kf1 {[%clk 0:00:03]}  h1=Q+ {[%clk 0:01:36]} 70. Ke2 {[%clk 0:00:04]}  Qf3+ {[%clk 0:01:35]} 71. Ke1 {[%clk 0:00:04]}  Qf2+ {[%clk 0:01:35]} 72. Kd1 {[%clk 0:00:02]}  Qc2+ {[%clk 0:01:35]} 73. Ke1 {[%clk 0:00:03]}  g2 {[%clk 0:01:35]} 0-1


[Site "https://www.chess.com"]

[Event "Titled Tuesday Blitz January 10 Early 2023"]
[White "Guliev, Logman"]
[Black "Bacrot, Etienne"]
[WhiteFideId "13400061"]
[BlackFideId "605506"]
[WhiteElo "2250"]
[BlackElo "2667"]
[Result "0-1"]
[Round "01"]
[TimeControl "180+2"]
[Date "2023.01.10"]
[WhiteClock "0:00:02"]
[BlackClock "0:00:02"]

1. e4 {[%clk 0:02:56]}  c5 {[%clk 0:02:36]} 2. Nf3 {[%clk 0:02:53]}  Nc6 {[%clk 0:02:34]} 3. d4 {[%clk 0:02:52]}  cxd4 {[%clk 0:02:35]} 4. Nxd4 {[%clk 0:02:53]}  Nf6 {[%clk 0:02:35]} 5. Nc3 {[%clk 0:02:53]}  d6 {[%clk 0:02:35]} 6. Bg5 {[%clk 0:02:52]}  e6 {[%clk 0:02:34]} 7. Qd2 {[%clk 0:02:52]}  a6 {[%clk 0:02:34]} 8. O-O-O {[%clk 0:02:52]}  Bd7 {[%clk 0:02:34]} 9. f3 {[%clk 0:02:51]}  Nxd4 {[%clk 0:02:32]} 10. Qxd4 {[%clk 0:02:50]}  Be7 {[%clk 0:02:33]} 11. Be3 {[%clk 0:02:49]}  h5 {[%clk 0:02:29]} 12. h4 {[%clk 0:02:44]}  Qc7 {[%clk 0:02:28]} 13. Bg5 {[%clk 0:02:43]}  b5 {[%clk 0:02:28]} 14. Kb1 {[%clk 0:02:44]}  Rb8 {[%clk 0:02:23]} 15. Bxf6 {[%clk 0:02:27]}  gxf6 {[%clk 0:02:12]} 16. Qd2 {[%clk 0:02:19]}  a5 {[%clk 0:02:02]} 17. Ne2 {[%clk 0:02:14]}  b4 {[%clk 0:01:59]} 18. Nd4 {[%clk 0:01:52]}  a4 {[%clk 0:01:58]} 19. Be2 {[%clk 0:01:42]}  Bf8 {[%clk 0:01:31]} 20. f4 {[%clk 0:01:36]}  Bg7 {[%clk 0:01:24]} 21. Bf3 {[%clk 0:01:26]}  Ke7 {[%clk 0:01:23]} 22. Rhe1 {[%clk 0:01:22]}  Qc5 {[%clk 0:01:20]} 23. g3 {[%clk 0:01:03]}  Rb6 {[%clk 0:00:47]} 24. Qd3 {[%clk 0:00:43]}  Bc8 {[%clk 0:00:37]} 25. Qd2 {[%clk 0:00:28]}  Ba6 {[%clk 0:00:30]} 26. Be2 {[%clk 0:00:28]}  Bb7 {[%clk 0:00:30]} 27. Bf3 {[%clk 0:00:27]}  f5 {[%clk 0:00:18]} 28. e5 {[%clk 0:00:11]}  Bxf3 {[%clk 0:00:09]} 29. Nxf3 {[%clk 0:00:11]}  d5 {[%clk 0:00:09]} 30. Qd4 {[%clk 0:00:08]}  Rc8 {[%clk 0:00:09]} 31. Qxc5+ {[%clk 0:00:08]}  Rxc5 {[%clk 0:00:10]} 32. Nd4 {[%clk 0:00:08]}  Bf8 {[%clk 0:00:10]} 33. Rd3 {[%clk 0:00:08]}  Kd7 {[%clk 0:00:10]} 34. Red1 {[%clk 0:00:07]}  Rc7 {[%clk 0:00:09]} 35. Nf3 {[%clk 0:00:05]}  Bc5 {[%clk 0:00:08]} 36. Ng5 {[%clk 0:00:03]}  Ke7 {[%clk 0:00:08]} 37. Nh7 {[%clk 0:00:03]}  Rc8 {[%clk 0:00:06]} 38. Nf6 {[%clk 0:00:03]}  Rh8 {[%clk 0:00:07]} 39. c3 {[%clk 0:00:03]}  Rb7 {[%clk 0:00:04]} 40. cxb4 {[%clk 0:00:02]}  Bxb4 {[%clk 0:00:05]} 41. Rc1 {[%clk 0:00:02]}  Ba5 {[%clk 0:00:02]} 0-1


[Site "https://www.chess.com"]

[Event "Titled Tuesday Blitz January 10 Early 2023"]
[White "Nogerbek, Kazybek"]
[Black "Namitbir Singh Walia"]
[WhiteFideId "13710427"]
[BlackFideId "35071068"]
[WhiteElo "2474"]
[BlackElo "2364"]
[Result "0-1"]
[Round "01"]
[TimeControl "180+2"]
[Date "2023.01.10"]
[WhiteClock "0:00:01"]
[BlackClock "0:00:12"]

1. d4 {[%clk 0:02:59]}  Nf6 {[%clk 0:02:57]} 2. Nf3 {[%clk 0:02:57]}  c5 {[%clk 0:02:57]} 3. d5 {[%clk 0:02:56]}  d6 {[%clk 0:02:55]} 4. c4 {[%clk 0:02:55]}  g6 {[%clk 0:02:54]} 5. Nc3 {[%clk 0:02:52]}  Bg7 {[%clk 0:02:55]} 6. e4 {[%clk 0:02:53]}  O-O {[%clk 0:02:55]} 7. h3 {[%clk 0:02:53]}  e6 {[%clk 0:02:50]} 8. Bd3 {[%clk 0:02:53]}  Na6 {[%clk 0:02:48]} 9. O-O {[%clk 0:02:53]}  e5 {[%clk 0:02:48]} 10. Be3 {[%clk 0:02:46]}  h6 {[%clk 0:02:46]} 11. a3 {[%clk 0:02:45]}  Nh5 {[%clk 0:02:37]} 12. Be2 {[%clk 0:01:33]}  Nf4 {[%clk 0:02:09]} 13. Nh2 {[%clk 0:01:23]}  Nxe2+ {[%clk 0:02:05]} 14. Qxe2 {[%clk 0:01:21]}  f5 {[%clk 0:02:05]} 15. exf5 {[%clk 0:01:11]}  gxf5 {[%clk 0:02:05]} 16. f4 {[%clk 0:01:10]}  Bd7 {[%clk 0:01:55]} 17. Rae1 {[%clk 0:01:03]}  Qe7 {[%clk 0:01:54]} 18. Qd2 {[%clk 0:00:56]}  e4 {[%clk 0:01:48]} 19. Rf2 {[%clk 0:00:53]}  Rae8 {[%clk 0:01:44]} 20. Kh1 {[%clk 0:00:52]}  Nc7 {[%clk 0:01:44]} 21. g4 {[%clk 0:00:41]}  b5 {[%clk 0:01:32]} 22. Rg1 {[%clk 0:00:38]}  Kh8 {[%clk 0:01:22]} 23. Rfg2 {[%clk 0:00:36]}  Rg8 {[%clk 0:01:03]} 24. Qe2 {[%clk 0:00:27]}  b4 {[%clk 0:01:00]} 25. Nd1 {[%clk 0:00:21]}  bxa3 {[%clk 0:00:58]} 26. bxa3 {[%clk 0:00:17]}  Rb8 {[%clk 0:00:58]} 27. g5 {[%clk 0:00:17]}  Qf7 {[%clk 0:00:49]} 28. Bd2 {[%clk 0:00:17]}  Rb3 {[%clk 0:00:46]} 29. Rg3 {[%clk 0:00:14]}  Rxg3 {[%clk 0:00:43]} 30. Rxg3 {[%clk 0:00:15]}  Bd4 {[%clk 0:00:40]} 31. Bc3 {[%clk 0:00:11]}  hxg5 {[%clk 0:00:39]} 32. Qd2 {[%clk 0:00:07]}  Qf6 {[%clk 0:00:21]} 33. fxg5 {[%clk 0:00:01]}  Qe5 {[%clk 0:00:22]} 34. Rg1 {[%clk 0:00:01]}  f4 {[%clk 0:00:19]} 35. Ng4 {[%clk 0:00:01]}  Bxg4 {[%clk 0:00:18]} 36. Rxg4 {[%clk 0:00:01]}  e3 {[%clk 0:00:18]} 37. Qe1 {[%clk 0:00:01]}  Rg7 {[%clk 0:00:12]} 0-1


[Site "https://www.chess.com"]

[Event "Titled Tuesday Blitz January 10 Early 2023"]
[White "Bon, Michael"]
[Black "Harsh Suresh"]
[WhiteFideId "620696"]
[BlackFideId "45018464"]
[WhiteElo "2394"]
[BlackElo "2298"]
[Result "0-1"]
[Round "01"]
[TimeControl "180+2"]
[Date "2023.01.10"]
[WhiteClock "0:00:02"]
[BlackClock "0:00:59"]

1. e4 {[%clk 0:02:57]}  c5 {[%clk 0:02:57]} 2. Nf3 {[%clk 0:02:57]}  g6 {[%clk 0:02:57]} 3. d4 {[%clk 0:02:57]}  cxd4 {[%clk 0:02:57]} 4. Nxd4 {[%clk 0:02:58]}  Nc6 {[%clk 0:02:57]} 5. c4 {[%clk 0:02:57]}  Nf6 {[%clk 0:02:55]} 6. Nc3 {[%clk 0:02:57]}  d6 {[%clk 0:02:55]} 7. Nc2 {[%clk 0:02:55]}  Bg7 {[%clk 0:02:55]} 8. Be2 {[%clk 0:02:55]}  O-O {[%clk 0:02:55]} 9. O-O {[%clk 0:02:56]}  a5 {[%clk 0:02:54]} 10. Be3 {[%clk 0:02:41]}  a4 {[%clk 0:02:51]} 11. Na3 {[%clk 0:02:37]}  Qa5 {[%clk 0:02:50]} 12. Nab5 {[%clk 0:02:32]}  Be6 {[%clk 0:02:47]} 13. Rc1 {[%clk 0:02:10]}  Rfc8 {[%clk 0:02:46]} 14. Nd5 {[%clk 0:02:02]}  Nd7 {[%clk 0:02:34]} 15. Bd2 {[%clk 0:01:43]}  Qd8 {[%clk 0:02:30]} 16. Bc3 {[%clk 0:01:43]}  Nc5 {[%clk 0:02:24]} 17. Bxg7 {[%clk 0:01:37]}  Kxg7 {[%clk 0:02:25]} 18. Nbc3 {[%clk 0:01:16]}  Qa5 {[%clk 0:02:20]} 19. f4 {[%clk 0:01:05]}  f6 {[%clk 0:02:03]} 20. f5 {[%clk 0:00:55]}  Bxd5 {[%clk 0:01:58]} 21. Nxd5 {[%clk 0:00:53]}  Nxe4 {[%clk 0:01:55]} 22. Kh1 {[%clk 0:00:27]}  Qc5 {[%clk 0:01:48]} 23. Qe1 {[%clk 0:00:24]}  Qd4 {[%clk 0:01:46]} 24. Rd1 {[%clk 0:00:20]}  Qe5 {[%clk 0:01:44]} 25. Qh4 {[%clk 0:00:16]}  g5 {[%clk 0:01:38]} 26. Qh5 {[%clk 0:00:11]}  Qxb2 {[%clk 0:01:16]} 27. Rde1 {[%clk 0:00:10]}  Ne5 {[%clk 0:01:03]} 28. Bf3 {[%clk 0:00:08]}  Nf2+ {[%clk 0:00:58]} 29. Kg1 {[%clk 0:00:08]}  Nfd3 {[%clk 0:00:58]} 30. Re2 {[%clk 0:00:05]}  Qd4+ {[%clk 0:00:58]} 31. Kh1 {[%clk 0:00:05]}  Nf4 {[%clk 0:00:58]} 32. Nxf4 {[%clk 0:00:01]}  Qxf4 {[%clk 0:00:59]} 33. Bxb7 {[%clk 0:00:02]}  Qxf1# {[%clk 0:00:59]} 0-1


[Site "https://www.chess.com"]

[Event "Titled Tuesday Blitz January 10 Early 2023"]
[White "Demchenko, Anton"]
[Black "Sihite, Chelsie Monica Ignesias"]
[WhiteFideId "4160258"]
[BlackFideId "7101198"]
[WhiteElo "2623"]
[BlackElo "2266"]
[Result "1-0"]
[Round "01"]
[TimeControl "180+2"]
[Date "2023.01.10"]
[WhiteClock "0:01:20"]
[BlackClock "0:01:43"]

1. e4 {[%clk 0:02:58]}  e5 {[%clk 0:02:57]} 2. Nf3 {[%clk 0:02:56]}  Nc6 {[%clk 0:02:57]} 3. Bc4 {[%clk 0:02:52]}  Bc5 {[%clk 0:02:56]} 4. d3 {[%clk 0:02:53]}  Nf6 {[%clk 0:02:56]} 5. Bg5 {[%clk 0:02:53]}  O-O {[%clk 0:02:56]} 6. c3 {[%clk 0:02:49]}  Be7 {[%clk 0:02:56]} 7. Nbd2 {[%clk 0:02:49]}  d6 {[%clk 0:02:56]} 8. a4 {[%clk 0:02:47]}  Be6 {[%clk 0:02:56]} 9. Bxe6 {[%clk 0:02:46]}  fxe6 {[%clk 0:02:57]} 10. O-O {[%clk 0:02:46]}  Kh8 {[%clk 0:02:55]} 11. b4 {[%clk 0:02:40]}  Nh5 {[%clk 0:02:53]} 12. Be3 {[%clk 0:02:40]}  Nf4 {[%clk 0:02:52]} 13. b5 {[%clk 0:02:33]}  Nb8 {[%clk 0:02:51]} 14. d4 {[%clk 0:02:28]}  exd4 {[%clk 0:02:44]} 15. cxd4 {[%clk 0:02:29]}  Nd7 {[%clk 0:02:44]} 16. Rc1 {[%clk 0:02:15]}  a6 {[%clk 0:02:41]} 17. bxa6 {[%clk 0:01:57]}  Rxa6 {[%clk 0:02:42]} 18. Bxf4 {[%clk 0:01:57]}  Rxf4 {[%clk 0:02:41]} 19. Qb3 {[%clk 0:01:57]}  Rb6 {[%clk 0:02:25]} 20. Qxe6 {[%clk 0:01:54]}  d5 {[%clk 0:02:11]} 21. Qxd5 {[%clk 0:01:50]}  Qe8 {[%clk 0:02:08]} 22. Rxc7 {[%clk 0:01:46]}  Nf8 {[%clk 0:01:53]} 23. Rfc1 {[%clk 0:01:41]}  Qxa4 {[%clk 0:01:45]} 24. Rxe7 {[%clk 0:01:37]}  Rc6 {[%clk 0:01:43]} 25. Rf1 {[%clk 0:01:20]} 1-0


[Site "https://www.chess.com"]

[Event "Titled Tuesday Blitz January 10 Early 2023"]
[White "Rustemov, Alexander"]
[Black "Sreyas Payyappat"]
[WhiteFideId "4119002"]
[BlackFideId "46674969"]
[WhiteElo "2525"]
[BlackElo "2076"]
[Result "1-0"]
[Round "01"]
[TimeControl "180+2"]
[Date "2023.01.10"]
[WhiteClock "0:01:07"]
[BlackClock "0:00:20"]

1. d4 {[%clk 0:03:00]}  Nf6 {[%clk 0:02:58]} 2. c4 {[%clk 0:03:01]}  c5 {[%clk 0:02:57]} 3. d5 {[%clk 0:03:00]}  e6 {[%clk 0:02:57]} 4. Nc3 {[%clk 0:02:59]}  exd5 {[%clk 0:02:57]} 5. cxd5 {[%clk 0:03:00]}  d6 {[%clk 0:02:57]} 6. e4 {[%clk 0:03:00]}  g6 {[%clk 0:02:57]} 7. h3 {[%clk 0:03:00]}  Bg7 {[%clk 0:02:58]} 8. Bd3 {[%clk 0:03:01]}  O-O {[%clk 0:02:59]} 9. Nf3 {[%clk 0:03:00]}  b5 {[%clk 0:02:58]} 10. Bxb5 {[%clk 0:03:00]}  Nxe4 {[%clk 0:02:57]} 11. Nxe4 {[%clk 0:03:00]}  Qa5+ {[%clk 0:02:57]} 12. Nfd2 {[%clk 0:03:01]}  Qxb5 {[%clk 0:02:57]} 13. Nxd6 {[%clk 0:03:01]}  Qa6 {[%clk 0:02:57]} 14. N2c4 {[%clk 0:03:01]}  Nd7 {[%clk 0:02:57]} 15. O-O {[%clk 0:03:02]}  Ne5 {[%clk 0:02:57]} 16. Nxe5 {[%clk 0:03:00]}  Bxe5 {[%clk 0:02:58]} 17. Nxc8 {[%clk 0:03:00]}  Raxc8 {[%clk 0:02:56]} 18. Qf3 {[%clk 0:02:58]}  Rcd8 {[%clk 0:02:51]} 19. Rd1 {[%clk 0:02:50]}  Qb7 {[%clk 0:02:46]} 20. Rb1 {[%clk 0:02:48]}  Rd7 {[%clk 0:02:40]} 21. Be3 {[%clk 0:02:37]}  Rc8 {[%clk 0:02:30]} 22. b3 {[%clk 0:02:35]}  Qa6 {[%clk 0:02:14]} 23. Rd2 {[%clk 0:02:30]}  Bc3 {[%clk 0:01:53]} 24. Rc2 {[%clk 0:02:26]}  Bb4 {[%clk 0:01:18]} 25. Rd1 {[%clk 0:02:15]}  Qd6 {[%clk 0:01:04]} 26. g3 {[%clk 0:02:06]}  Re8 {[%clk 0:00:56]} 27. Rc4 {[%clk 0:02:02]}  f5 {[%clk 0:00:53]} 28. Bf4 {[%clk 0:01:59]}  Qa6 {[%clk 0:00:52]} 29. Rc2 {[%clk 0:01:53]}  Re4 {[%clk 0:00:51]} 30. Kg2 {[%clk 0:01:45]}  Qf6 {[%clk 0:00:45]} 31. h4 {[%clk 0:01:43]}  Kg7 {[%clk 0:00:35]} 32. Rc4 {[%clk 0:01:40]}  Qe7 {[%clk 0:00:27]} 33. d6 {[%clk 0:01:38]}  Qe6 {[%clk 0:00:26]} 34. Qd3 {[%clk 0:01:35]}  Re2 {[%clk 0:00:22]} 35. Rc2 {[%clk 0:01:31]}  Rxc2 {[%clk 0:00:19]} 36. Qxc2 {[%clk 0:01:31]}  h6 {[%clk 0:00:20]} 37. Qc4 {[%clk 0:01:24]}  Qxc4 {[%clk 0:00:20]} 38. bxc4 {[%clk 0:01:24]}  Bc3 {[%clk 0:00:20]} 39. Rd5 {[%clk 0:01:23]}  Bd4 {[%clk 0:00:20]} 40. Rxd4 {[%clk 0:01:16]}  cxd4 {[%clk 0:00:20]} 41. c5 {[%clk 0:01:17]}  Kf7 {[%clk 0:00:21]} 42. c6 {[%clk 0:01:16]}  Rd8 {[%clk 0:00:20]} 43. d7 {[%clk 0:01:11]}  Ke7 {[%clk 0:00:19]} 44. c7 {[%clk 0:01:10]}  Kxd7 {[%clk 0:00:19]} 45. cxd8=Q+ {[%clk 0:01:09]}  Kxd8 {[%clk 0:00:20]} 46. Bxh6 {[%clk 0:01:08]}  Kd7 {[%clk 0:00:19]} 47. Kf3 {[%clk 0:01:08]}  Ke6 {[%clk 0:00:19]} 48. Ke2 {[%clk 0:01:07]}  Kd5 {[%clk 0:00:20]} 49. Kd3 {[%clk 0:01:07]}  a6 {[%clk 0:00:20]} 50. Bg7 {[%clk 0:01:07]} 1-0


[Site "https://www.chess.com"]